bitfinex/quotes_BTCUSD_20241111
["timestamp","ask_amount","ask_price","bid_price","bid_amount"]
[1731367415212,1.3,89478.0,89459.0,0.16785752]
[1731367415455,1.91422305,89495.0,89477.0,0.11053157]
[1731367415660,0.16785752,89494.0,89477.0,0.11053157]
[1731367415871,1.71422305,89495.0,89477.0,0.11053157]
[1731367416076,1.71422305,89495.0,89478.0,0.16785752]
[1731367416285,1.51422305,89495.0,89479.0,0.11422305]
[1731367416494,1.31422305,89495.0,89479.0,0.11422305]
[1731367416702,1.22032037,89495.0,89479.0,0.11422305]
[1731367416908,1.11422305,89495.0,89480.0,0.16785752]
[1731367417124,1.11422305,89495.0,89468.0,0.16785752]
[1731367417125,0.0008549,89470.0,89468.0,0.16785752]
[1731367417344,0.90848633,89495.0,89469.0,0.11422305]
[1731367417551,0.70848633,89495.0,89494.0,0.005]
[1731367418235,0.70848633,89495.0,89488.0,0.1242]
[1731367418236,0.50848633,89495.0,89488.0,0.1242]
[1731367418443,0.50848633,89495.0,89492.0,0.005]
[1731367418648,0.50848633,89495.0,89493.0,0.11422305]
[1731367418879,0.30848633,89495.0,89493.0,0.11422305]
[1731367419100,0.10848633,89495.0,89493.0,0.11422305]
[1731367419796,0.00143633,89500.0,89493.0,0.11422305]
[1731367420013,0.002,89524.0,89493.0,0.11422305]
[1731367420231,0.1,89522.0,89493.0,0.11422305]
[1731367420431,0.1,89522.0,89498.0,0.16785752]
[1731367420652,0.1317543,89529.0,89499.0,0.11422305]
[1731367421061,1.5,89528.0,89508.0,0.16785752]
[1731367421289,1.5,89528.0,89509.0,0.11422305]
[1731367421290,0.09962327,89514.0,89509.0,0.11422305]
[1731367421487,0.09962327,89517.0,89509.0,0.11422305]
[1731367421698,0.09962327,89518.0,89509.0,0.11422305]
[1731367421969,0.09462327,89518.0,89509.0,0.11422305]
[1731367422377,1.4,89528.0,89510.0,0.11422305]
[1731367422526,0.1142211,89527.0,89510.0,0.11422305]
[1731367422741,1.4,89528.0,89510.0,0.11422305]
[1731367422742,1.5494349,89528.0,89511.0,0.16785752]
[1731367423084,1.5494349,89528.0,89511.0,0.28208057]
[1731367423264,1.4,89528.0,89511.0,0.28208057]
[1731367423627,0.1494349,89526.0,89511.0,0.28208057]
[1731367423837,1.4,89528.0,89511.0,0.28208057]
[1731367424249,0.02359368,89527.0,89511.0,0.28208057]
[1731367424673,0.02359368,89527.0,89498.0,0.16785752]
[1731367424674,0.02359368,89527.0,89512.0,0.16785752]
[1731367425093,0.101,89532.0,89513.0,0.11422305]
[1731367425295,0.101,89532.0,89508.0,0.0792]
[1731367425474,0.101,89532.0,89510.0,0.16785752]
[1731367425475,1.61422305,89531.0,89510.0,0.16785752]
[1731367425898,0.1,89521.0,89511.0,0.16785752]
[1731367426627,0.1,89519.0,89511.0,0.16785752]
[1731367427026,0.19388208,89534.0,89511.0,0.16785752]
[1731367427027,0.19388208,89534.0,89512.0,0.11422305]
[1731367427231,0.1008529,89533.0,89498.0,0.16785752]
[1731367427410,1.6008529,89533.0,89512.0,0.16785752]
[1731367427612,1.6008529,89533.0,89499.0,0.11422305]
[1731367427814,0.1142211,89531.0,89510.0,0.16785752]
[1731367428042,0.1,89530.0,89510.0,0.28208057]
[1731367428507,1.5,89529.0,89510.0,0.28208057]
[1731367429028,0.1,89530.0,89511.0,0.16785752]
[1731367429029,0.29388208,89523.0,89511.0,0.16785752]
[1731367429227,0.111706,89521.0,89511.0,0.16785752]
[1731367429440,0.07432101,89520.0,89511.0,0.16785752]
[1731367429645,0.40810513,89523.0,89511.0,0.16785752]
[1731367429646,0.1,89523.0,89511.0,0.16785752]
[1731367429841,0.0008549,89531.0,89500.0,2.0]
[1731367429842,0.1,89526.0,89500.0,2.0]
[1731367430368,0.1,89521.0,89507.0,0.16785752]
[1731367430688,0.11173,89501.0,89500.0,1.99380598]
[1731367430825,0.1,89512.0,89501.0,0.16785752]
[1731367431000,0.1,89508.0,89501.0,0.16785752]
[1731367431392,0.1,89510.0,89501.0,0.16785752]
[1731367431592,0.30560408,89508.0,89500.0,1.99380598]
[1731367431795,0.21173,89501.0,89500.0,1.6105633]
[1731367432017,0.1,89497.0,89479.0,0.16785752]
[1731367432225,0.1,89499.0,89479.0,0.16785752]
[1731367432226,0.19388208,89480.0,89479.0,0.16785752]
[1731367432466,0.11422305,89496.0,89479.0,0.16785752]
[1731367432467,0.19388208,89489.0,89479.0,0.16785752]
[1731367432875,0.023,89497.0,89479.0,0.16785752]
[1731367433096,0.111739,89494.0,89461.0,0.005]
[1731367433335,0.023,89497.0,89471.0,0.11422305]
[1731367433488,0.023,89498.0,89471.0,0.11422305]
[1731367433691,0.19388208,89489.0,89479.0,0.08414259]
[1731367433898,1.53455443,89488.0,89479.0,0.08414259]
[1731367434107,0.03455443,89487.0,89479.0,0.08414259]
[1731367434273,0.03455443,89486.0,89457.0,0.0782]
[1731367434554,0.03455443,89485.0,89457.0,0.0782]
[1731367434708,0.03455443,89484.0,89457.0,0.0782]
[1731367434913,0.03455443,89483.0,89457.0,0.0782]
[1731367435115,0.03455443,89482.0,89457.0,0.0782]
[1731367435323,0.03455443,89481.0,89457.0,0.0782]
[1731367435518,0.22843651,89480.0,89457.0,0.0782]
[1731367435725,0.023,89476.0,89463.0,0.16785752]
[1731367435926,0.223528,89474.0,89463.0,0.16785752]
[1731367436140,0.03455443,89473.0,89472.0,0.16785752]
[1731367436347,0.02955443,89473.0,89463.0,0.16785752]
[1731367436566,0.02479663,89488.0,89446.0,0.16785752]
[1731367436567,0.19388208,89465.0,89446.0,0.16785752]
[1731367436774,0.02955443,89464.0,89458.0,0.16785752]
[1731367437070,1.52955443,89463.0,89446.0,0.16785752]
[1731367437248,0.02955443,89462.0,89455.0,0.16785752]
[1731367437453,0.02955443,89461.0,89456.0,0.16785752]
[1731367437651,0.02955443,89460.0,89450.0,0.005]
[1731367437858,0.02955443,89459.0,89451.0,0.11422305]
[1731367438030,0.19388208,89477.0,89451.0,0.11422305]
[1731367438265,0.14878303,89476.0,89460.0,0.16785752]
[1731367438462,0.223496,89487.0,89446.0,0.16785752]
[1731367438463,0.03455998,89475.0,89457.0,0.005]
[1731367438663,0.03455998,89474.0,89463.0,0.16785752]
[1731367438944,0.03455998,89473.0,89463.0,0.16785752]
[1731367439143,0.03455998,89472.0,89465.0,0.005]
[1731367439399,0.11422305,89494.0,89467.0,0.002]
[1731367439400,0.03455998,89471.0,89467.0,0.002]
[1731367439604,0.16785752,89501.0,89471.0,0.005]
[1731367439795,0.16785752,89492.0,89472.0,0.11422305]
[1731367439971,0.03456882,89491.0,89473.0,0.16785752]
[1731367440179,0.03456882,89490.0,89474.0,0.11422305]
[1731367440456,0.03456882,89489.0,89474.0,0.11422305]
[1731367440655,0.03456882,89488.0,89474.0,0.11922305]
[1731367440878,0.03456882,89488.0,89477.0,0.005]
[1731367441066,0.03456882,89487.0,89481.0,0.005]
[1731367441334,0.03456882,89486.0,89481.0,0.11422305]
[1731367441516,0.03456882,89485.0,89481.0,0.11922305]
[1731367441725,0.03456882,89484.0,89481.0,0.11922305]
[1731367441860,0.03456882,89483.0,89481.0,0.11922305]
[1731367442059,0.03456882,89482.0,89481.0,0.11922305]
[1731367442283,0.03456882,89482.0,89481.0,0.11422305]
[1731367442483,0.03456882,89482.0,89481.0,0.11922305]
[1731367443797,0.211701,89525.0,89494.0,0.002]
[1731367443798,0.1,89525.0,89494.0,0.002]
[1731367443927,0.16785752,89512.0,89495.0,0.16392305]
[1731367444138,0.03460263,89511.0,89495.0,0.16392305]
[1731367444489,0.03460263,89510.0,89495.0,0.0497]
[1731367444724,0.03460263,89510.0,89496.0,0.16785752]
[1731367444725,0.19388208,89504.0,89496.0,0.16785752]
[1731367444918,0.03460263,89503.0,89496.0,0.16785752]
[1731367445134,0.11422305,89510.0,89496.0,0.16785752]
[1731367445135,0.03460263,89502.0,89496.0,0.16785752]
[1731367445306,0.02960263,89501.0,89496.0,0.28208057]
[1731367445504,0.02960263,89500.0,89496.0,0.28208057]
[1731367445759,0.02960263,89499.0,89496.0,0.28208057]
[1731367445926,0.02960263,89498.0,89496.0,0.11422305]
[1731367446129,0.02960263,89497.0,89496.0,0.11422305]
[1731367446335,0.02910263,89497.0,89496.0,0.11422305]
[1731367448643,0.02910263,89497.0,89490.0,0.005]
[1731367448792,0.02910263,89496.0,89491.0,0.11422305]
[1731367449007,0.1,89521.0,89491.0,0.11422305]
[1731367449008,0.02910263,89495.0,89491.0,0.11422305]
[1731367449184,0.02910263,89494.0,89489.0,0.0752]
[1731367449387,0.02910263,89493.0,89489.0,0.0752]
[1731367449643,0.02910263,89492.0,89489.0,0.0752]
[1731367449854,0.19388208,89505.0,89489.0,0.0752]
[1731367449855,0.02910263,89491.0,89489.0,0.0752]
[1731367450058,0.02910263,89490.0,89489.0,0.0752]
[1731367450393,0.02910263,89490.0,89489.0,0.08272]
[1731367450606,0.02910263,89490.0,89489.0,0.0772]
[1731367450966,0.02910263,89490.0,89489.0,0.0752]
[1731367453778,0.02910263,89490.0,89478.0,0.04620845]
[1731367453987,0.02910263,89489.0,89482.0,0.16785752]
[1731367454134,0.02910263,89488.0,89482.0,0.16785752]
[1731367454337,0.02910263,89487.0,89482.0,0.16785752]
[1731367454560,1.5,89512.0,89482.0,0.16785752]
[1731367454561,0.02910263,89486.0,89482.0,0.16785752]
[1731367454858,0.02910263,89485.0,89481.0,0.0017094]
[1731367455108,0.02910263,89484.0,89481.0,0.0017094]
[1731367455282,0.0008547,89493.0,89481.0,0.0017094]
[1731367455283,0.02910263,89483.0,89481.0,0.0017094]
[1731367455508,0.0008547,89493.0,89482.0,0.28708057]
[1731367455726,0.03468395,89492.0,89482.0,0.11922305]
[1731367455942,0.24892692,89530.0,89482.0,0.11922305]
[1731367455943,0.16785752,89515.0,89490.0,0.002]
[1731367456178,0.03468369,89514.0,89487.0,0.002]
[1731367456389,0.03468369,89513.0,89495.0,0.16785752]
[1731367456589,0.03468369,89512.0,89495.0,0.16785752]
[1731367456881,0.14890674,89511.0,89485.0,0.082]
[1731367457123,0.03468369,89510.0,89493.0,0.16785752]
[1731367457301,0.18318562,89509.0,89493.0,0.16785752]
[1731367457539,0.0822,89507.0,89493.0,0.16785752]
[1731367457738,0.19388208,89502.0,89481.0,0.0017094]
[1731367457934,0.03468369,89501.0,89494.0,0.16785752]
[1731367458090,0.023,89499.0,89481.0,0.0017094]
[1731367458280,0.19388208,89491.0,89486.0,0.16785752]
[1731367458475,0.0540719,89490.0,89486.0,0.16785752]
[1731367458722,0.03468369,89489.0,89486.0,0.16785752]
[1731367458931,0.03468369,89488.0,89486.0,0.16785752]
[1731367459123,0.03468369,89487.0,89481.0,0.0017094]
[1731367459322,0.19388208,89511.0,89481.0,0.0017094]
[1731367459323,0.03468369,89486.0,89481.0,0.0017094]
[1731367459580,0.03468369,89485.0,89481.0,0.0017094]
[1731367459789,0.16785752,89520.0,89483.0,0.002]
[1731367459790,0.03468369,89484.0,89483.0,0.002]
[1731367460036,0.03468369,89484.0,89483.0,0.11922305]
[1731367461125,0.03468369,89484.0,89483.0,0.12122305]
[1731367461340,6.9e-07,89484.0,89483.0,0.12622305]
[1731367462209,6.9e-07,89484.0,89483.0,0.12122305]
[1731367462435,6.9e-07,89484.0,89483.0,0.11922305]
[1731367462642,6.9e-07,89484.0,89483.0,0.12422305]
[1731367462791,6.9e-07,89484.0,89483.0,0.12622305]
[1731367463796,6.9e-07,89484.0,89483.0,0.07043409]
[1731367464883,6.9e-07,89484.0,89483.0,0.07266892]
[1731367465056,6.9e-07,89484.0,89483.0,0.07043409]
[1731367465645,6.9e-07,89519.0,89496.0,0.005]
[1731367465870,6.9e-07,89518.0,89497.0,0.0451]
[1731367466090,6.9e-07,89517.0,89516.0,0.005]
[1731367466290,6.9e-07,89517.0,89516.0,0.11922305]
[1731367466462,6.9e-07,89517.0,89514.0,0.0807]
[1731367466673,6.9e-07,89516.0,89514.0,0.005]
[1731367466869,6.9e-07,89515.0,89514.0,0.005]
[1731367467151,6.9e-07,89515.0,89497.0,0.29035752]
[1731367467396,0.0008549,89531.0,89497.0,0.29035752]
[1731367467397,6.9e-07,89514.0,89506.0,0.16785752]
[1731367467561,6.9e-07,89513.0,89486.0,0.005]
[1731367467763,0.11422305,89514.0,89499.0,0.16785752]
[1731367467764,0.01142306,89512.0,89499.0,0.16785752]
[1731367467972,1.61422374,89511.0,89485.0,0.005]
[1731367468193,1.61422374,89511.0,89496.0,0.16785752]
[1731367468194,0.02300069,89510.0,89496.0,0.16785752]
[1731367468410,0.01142237,89512.0,89496.0,0.16785752]
[1731367468411,0.023,89508.0,89496.0,0.16785752]
[1731367468622,0.023,89506.0,89496.0,0.16785752]
[1731367468826,1.61355374,89505.0,89496.0,0.16785752]
[1731367469032,6.9e-07,89504.0,89496.0,0.16785752]
[1731367469246,0.11422374,89503.0,89496.0,0.16785752]
[1731367469455,6.9e-07,89502.0,89496.0,0.16785752]
[1731367469668,6.9e-07,89502.0,89487.0,0.12822752]
[1731367469669,0.11422374,89501.0,89487.0,0.12822752]
[1731367470064,6.9e-07,89500.0,89487.0,0.12822752]
[1731367470231,6.9e-07,89499.0,89487.0,0.12822752]
[1731367470438,6.9e-07,89498.0,89487.0,0.12822752]
[1731367470646,6.9e-07,89497.0,89487.0,0.12822752]
[1731367470849,6.9e-07,89496.0,89487.0,0.12822752]
[1731367471025,6.9e-07,89495.0,89487.0,0.12822752]
[1731367471229,6.9e-07,89494.0,89485.0,0.005]
[1731367471444,6.9e-07,89493.0,89481.0,0.0017094]
[1731367471591,6.9e-07,89492.0,89481.0,0.0017094]
[1731367471808,0.223438,89511.0,89481.0,0.0017094]
[1731367471809,6.9e-07,89491.0,89481.0,0.0017094]
[1731367472011,6.9e-07,89490.0,89486.0,0.16785752]
[1731367472281,6.9e-07,89489.0,89481.0,0.0017094]
[1731367472539,0.111722,89508.0,89481.0,0.0017094]
[1731367472540,6.9e-07,89488.0,89481.0,0.0017094]
[1731367472746,6.9e-07,89487.0,89481.0,0.0017094]
[1731367472947,6.9e-07,89486.0,89481.0,0.0017094]
[1731367473198,0.023,89482.0,89481.0,0.0017094]
[1731367473429,0.15875611,89482.0,89481.0,0.0017094]
[1731367473852,0.15875611,89482.0,89478.0,0.08584652]
[1731367473853,0.023,89481.0,89478.0,0.08584652]
[1731367474067,1.63672374,89482.0,89469.0,0.16785752]
[1731367474068,1.5,89482.0,89480.0,0.16785752]
[1731367474250,0.03475375,89481.0,89469.0,0.16785752]
[1731367474468,0.03475375,89480.0,89469.0,0.16785752]
[1731367474587,0.1489768,89479.0,89455.0,0.16785752]
[1731367474792,0.14897485,89478.0,89468.0,0.16785752]
[1731367475041,0.1489768,89477.0,89455.0,0.16785752]
[1731367475216,0.03475375,89476.0,89455.0,0.16785752]
[1731367475565,1.611754,89482.0,89455.0,0.16785752]
[1731367475566,0.1489768,89475.0,89464.0,0.16785752]
[1731367475768,0.03475375,89474.0,89464.0,0.16785752]
[1731367476079,0.1489768,89473.0,89464.0,0.16785752]
[1731367476223,0.03475375,89472.0,89464.0,0.16785752]
[1731367476423,0.1489768,89471.0,89455.0,0.16785752]
[1731367476639,0.03475375,89470.0,89455.0,0.16785752]
[1731367476842,0.1489768,89469.0,89455.0,0.16785752]
[1731367477044,0.03475375,89468.0,89464.0,0.16785752]
[1731367477244,0.1489768,89467.0,89455.0,0.16785752]
[1731367477448,0.03475375,89466.0,89455.0,0.16785752]
[1731367477657,0.11422305,89467.0,89442.0,0.005]
[1731367477658,0.023,89464.0,89442.0,0.005]
[1731367477867,0.16387448,89465.0,89456.0,0.16785752]
[1731367477868,0.03475375,89463.0,89456.0,0.16785752]
[1731367478131,0.0781,89470.0,89456.0,0.16785752]
[1731367478132,1.6489768,89462.0,89456.0,0.16785752]
[1731367478327,0.05775375,89461.0,89437.0,0.16785752]
[1731367478532,0.36341583,89461.0,89437.0,0.16785752]
[1731367478772,0.47763888,89461.0,89446.0,0.16785752]
[1731367478970,0.57763888,89461.0,89446.0,0.16785752]
[1731367479351,0.57763888,89461.0,89447.0,0.16785752]
[1731367479352,0.111796,89448.0,89447.0,0.16785752]
[1731367479589,0.111796,89448.0,89437.0,0.16785752]
[1731367479590,0.223601,89445.0,89437.0,0.16785752]
[1731367479833,0.19388208,89447.0,89414.0,0.16785752]
[1731367479834,0.19388208,89423.0,89414.0,0.16785752]
[1731367480058,0.11422305,89438.0,89414.0,0.16785752]
[1731367480059,1.55775375,89422.0,89414.0,0.16785752]
[1731367480284,0.023,89419.0,89414.0,0.16785752]
[1731367480453,0.03475375,89418.0,89414.0,0.16785752]
[1731367480657,0.023,89416.0,89414.0,0.16785752]
[1731367480884,0.03475375,89415.0,89414.0,0.16785752]
[1731367481013,0.03475375,89415.0,89406.0,0.0017078]
[1731367481014,0.1489768,89415.0,89406.0,0.0017078]
[1731367481231,1.5,89422.0,89406.0,0.0017078]
[1731367481232,0.16387448,89414.0,89406.0,0.0017078]
[1731367481436,0.023,89412.0,89406.0,0.0017078]
[1731367481797,0.023,89410.0,89406.0,0.0017078]
[1731367482134,0.023,89408.0,89406.0,0.0017078]
[1731367482319,0.1719768,89407.0,89406.0,0.0017078]
[1731367482639,0.1719768,89407.0,89395.0,0.001708]
[1731367482640,0.048,89406.0,89395.0,0.001708]
[1731367482832,0.048,89406.0,89398.0,0.16785752]
[1731367482833,0.11422305,89402.0,89398.0,0.16785752]
[1731367482958,0.148,89406.0,89379.0,0.16785752]
[1731367482959,0.123,89395.0,89379.0,0.16785752]
[1731367483159,0.05775375,89394.0,89393.0,0.16785752]
[1731367483391,0.123,89393.0,89379.0,0.16785752]
[1731367483707,0.023,89391.0,89379.0,0.16785752]
[1731367483880,0.023,89389.0,89379.0,0.16785752]
[1731367484097,0.02611563,89388.0,89379.0,0.16785752]
[1731367484270,0.02611563,89387.0,89379.0,0.16785752]
[1731367484481,0.02611563,89386.0,89379.0,0.16785752]
[1731367484678,0.04911563,89385.0,89378.0,0.0017086]
[1731367484877,0.14033868,89384.0,89378.0,0.0017086]
[1731367485129,0.02611563,89383.0,89378.0,0.0017086]
[1731367485272,0.02611563,89382.0,89378.0,0.0017086]
[1731367485476,0.02611563,89381.0,89378.0,0.0017086]
[1731367485664,0.02611563,89380.0,89379.0,0.16785752]
[1731367485865,0.02611563,89380.0,89379.0,0.17785752]
[1731367486089,0.02611563,89380.0,89379.0,0.12622305]
[1731367486522,0.16785752,89410.0,89402.0,0.01]
[1731367486696,0.16785752,89410.0,89390.0,0.005]
[1731367486909,0.19388208,89429.0,89399.0,0.005]
[1731367487095,0.0755,89438.0,89396.0,0.005]
[1731367487096,0.1310088,89419.0,89396.0,0.005]
[1731367487301,0.1310088,89419.0,89405.0,0.005]
[1731367487513,0.0019298,89449.0,89427.0,0.005]
[1731367487781,0.20223799,89435.0,89434.0,0.005]
[1731367487984,0.03438047,89435.0,89434.0,0.005]
[1731367488246,0.14860352,89435.0,89415.0,0.005]
[1731367488494,0.14860352,89435.0,89402.0,0.16785752]
[1731367488495,0.0755,89476.0,89451.0,0.005]
[1731367488692,0.16785752,89458.0,89451.0,0.005]
[1731367488892,0.03436744,89457.0,89451.0,0.005]
[1731367489116,0.02918575,89475.0,89451.0,0.005]
[1731367489117,0.03436744,89456.0,89451.0,0.005]
[1731367489279,0.02918575,89475.0,89451.0,0.005]
[1731367489280,0.03436744,89455.0,89451.0,0.005]
[1731367489500,0.03436744,89454.0,89451.0,0.005]
[1731367489643,0.03436744,89453.0,89451.0,0.005]
[1731367489849,0.03436744,89452.0,89451.0,0.005]
[1731367490506,0.03436744,89452.0,89451.0,0.01]
[1731367491072,0.03436744,89452.0,89437.0,0.16785752]
[1731367491073,0.14859049,89452.0,89437.0,0.16785752]
[1731367491267,0.14859049,89451.0,89437.0,0.16785752]
[1731367491496,0.03436744,89450.0,89437.0,0.16785752]
[1731367491707,0.14859049,89449.0,89432.0,0.005]
[1731367491932,0.05736744,89448.0,89433.0,0.16785752]
[1731367492132,0.023,89446.0,89433.0,0.16785752]
[1731367492338,0.023,89444.0,89420.0,0.16785752]
[1731367492561,0.023,89433.0,89421.0,0.16785752]
[1731367492808,0.023,89431.0,89421.0,0.16785752]
[1731367492958,0.023,89429.0,89421.0,0.16785752]
[1731367493158,0.03436744,89428.0,89421.0,0.16785752]
[1731367493360,0.03436744,89428.0,89411.0,0.16785752]
[1731367493361,0.14859049,89427.0,89411.0,0.16785752]
[1731367493570,0.14859049,89427.0,89416.0,0.005]
[1731367493571,0.03436744,89426.0,89416.0,0.005]
[1731367493741,0.11422305,89427.0,89411.0,0.06117649]
[1731367493742,0.03436744,89425.0,89411.0,0.06117649]
[1731367493941,0.03436744,89424.0,89411.0,0.06117649]
[1731367494169,0.03436744,89423.0,89411.0,0.06117649]
[1731367494381,0.03436744,89422.0,89411.0,0.06117649]
[1731367494583,0.03436744,89421.0,89411.0,0.06117649]
[1731367494782,0.03436744,89420.0,89405.0,0.005]
[1731367494950,0.03436744,89419.0,89405.0,0.005]
[1731367495150,1.61422305,89427.0,89405.0,0.005]
[1731367495151,0.03436744,89418.0,89405.0,0.005]
[1731367495361,1.61422305,89427.0,89405.0,0.005]
[1731367495362,0.03436744,89417.0,89405.0,0.005]
[1731367495565,0.03436744,89416.0,89405.0,0.005]
[1731367495863,0.03436744,89415.0,89402.0,0.16785752]
[1731367496014,0.03436744,89414.0,89398.0,0.005]
[1731367496226,0.16785752,89412.0,89394.0,0.0017112]
[1731367496403,0.023,89410.0,89395.0,0.16785752]
[1731367496603,0.023,89408.0,89395.0,0.16785752]
[1731367496832,0.023,89406.0,89395.0,0.16785752]
[1731367497080,0.03654726,89410.0,89394.0,0.0017112]
[1731367497081,0.023,89404.0,89394.0,0.0017112]
[1731367497206,0.03654726,89410.0,89397.0,0.16785752]
[1731367497207,0.023,89402.0,89397.0,0.16785752]
[1731367497406,0.023,89400.0,89394.0,0.0017112]
[1731367497623,0.023,89398.0,89389.0,0.16785752]
[1731367497952,0.03436744,89397.0,89389.0,0.16785752]
[1731367498160,0.023,89398.0,89389.0,0.16785752]
[1731367498161,0.03436744,89396.0,89389.0,0.16785752]
[1731367498303,0.023,89398.0,89389.0,0.16785752]
[1731367498304,0.03436744,89395.0,89389.0,0.16785752]
[1731367498514,0.03436744,89394.0,89366.0,0.00357957]
[1731367498711,0.05736744,89393.0,89381.0,0.16785752]
[1731367498939,0.023,89391.0,89367.0,0.11422305]
[1731367499116,0.03436744,89390.0,89376.0,0.16785752]
[1731367499320,0.03436744,89389.0,89376.0,0.16785752]
[1731367499639,0.023,89391.0,89376.0,0.16785752]
[1731367499640,0.03436744,89388.0,89376.0,0.16785752]
[1731367499796,0.03436744,89387.0,89376.0,0.16785752]
[1731367499996,0.03436744,89386.0,89376.0,0.16785752]
[1731367500218,0.03436744,89385.0,89376.0,0.16785752]
[1731367500598,0.03436744,89384.0,89376.0,0.16785752]
[1731367500792,0.03436744,89383.0,89367.0,0.30810513]
[1731367501050,1.0,89398.0,89366.0,0.00134201]
[1731367501051,0.03436744,89382.0,89379.0,0.19388208]
[1731367501250,0.16785752,89397.0,89387.0,0.005]
[1731367501451,0.16785752,89397.0,89390.0,0.19388208]
[1731367501452,0.03441687,89396.0,89390.0,0.19388208]
[1731367501577,0.03441687,89395.0,89391.0,0.11422305]
[1731367501780,1.0,89398.0,89393.0,0.005]
[1731367502106,0.03445144,89397.0,89395.0,0.0761]
[1731367502276,1.0,89398.0,89395.0,0.0761]
[1731367502277,1.0,89398.0,89396.0,0.11422305]
[1731367502484,1.0,89398.0,89395.0,0.0761]
[1731367502803,0.03447748,89397.0,89395.0,0.11422305]
[1731367503074,0.03447748,89396.0,89395.0,0.11422305]
[1731367503517,0.13792523,89396.0,89391.0,0.0008556]
[1731367503636,0.17170053,89395.0,89391.0,0.0008556]
[1731367503834,0.023,89393.0,89391.0,0.0008556]
[1731367504143,0.17170053,89392.0,89391.0,0.0008556]
[1731367504314,1.67170053,89392.0,89391.0,0.0008556]
[1731367504450,1.78592163,89392.0,89391.0,0.0008556]
[1731367504656,1.67170053,89392.0,89391.0,0.0008556]
[1731367504856,1.53447748,89392.0,89391.0,0.0008556]
[1731367505070,1.55747748,89392.0,89391.0,0.0008556]
[1731367505275,1.67170053,89392.0,89391.0,0.0008556]
[1731367505491,1.67670053,89392.0,89391.0,0.0008556]
[1731367505736,1.79092163,89392.0,89391.0,0.0008556]
[1731367506147,2.00778763,89392.0,89391.0,0.0008556]
[1731367506356,0.028,89362.0,89357.0,0.16785752]
[1731367506585,0.028,89362.0,89348.0,0.16785752]
[1731367506586,0.005,89349.0,89348.0,0.16785752]
[1731367506806,0.005,89338.0,89337.0,0.16785752]
[1731367507010,0.005,89338.0,89294.0,0.16785752]
[1731367507011,0.005,89327.0,89294.0,0.16785752]
[1731367507233,0.005,89318.0,89294.0,0.16785752]
[1731367507441,0.028,89316.0,89313.0,0.16785752]
[1731367507647,0.023,89314.0,89303.0,0.16785752]
[1731367507876,0.03447748,89313.0,89305.0,0.01697212]
[1731367508094,0.03447748,89312.0,89305.0,0.01697212]
[1731367508326,0.023,89305.0,89285.0,0.01697212]
[1731367508548,0.07052523,89305.0,89287.0,0.16785752]
[1731367508788,0.28474828,89305.0,89287.0,0.16785752]
[1731367509064,0.28974828,89305.0,89288.0,0.16785752]
[1731367509269,0.28974828,89305.0,89243.0,0.30017783]
[1731367509270,0.005,89284.0,89270.0,0.16785752]
[1731367509506,0.40370028,89305.0,89253.0,0.16785752]
[1731367509507,0.023,89259.0,89253.0,0.16785752]
[1731367509707,0.1,89269.0,89253.0,0.16785752]
[1731367509708,0.03447748,89258.0,89253.0,0.16785752]
[1731367509932,0.03447748,89257.0,89244.0,0.16785752]
[1731367510138,0.005,89255.0,89201.0,0.09384564]
[1731367510369,0.005,89255.0,89202.0,0.0793]
[1731367510370,0.06247748,89255.0,89202.0,0.0793]
[1731367510583,0.06747748,89255.0,89202.0,0.0793]
[1731367511140,0.06247748,89255.0,89203.0,0.00224184]
[1731367511349,0.06247748,89255.0,89202.0,0.0793]
[1731367511788,0.005,89234.0,89202.0,0.0793]
[1731367511968,0.005,89234.0,89193.0,0.025]
[1731367511969,0.05747748,89233.0,89193.0,0.025]
[1731367512173,0.023,89231.0,89193.0,0.025]
[1731367512482,0.023,89229.0,89193.0,0.025]
[1731367512715,1.523,89219.0,89193.0,0.025]
[1731367512929,1.53447748,89219.0,89208.0,0.0313899]
[1731367513159,1.53447748,89219.0,89193.0,0.025]
[1731367513160,0.14870053,89218.0,89200.0,0.16785752]
[1731367513376,0.023,89216.0,89193.0,0.025]
[1731367513586,1.5,89199.0,89193.0,0.025]
[1731367513863,1.5,89199.0,89182.0,0.11235767]
[1731367513864,1.61422305,89199.0,89182.0,0.11235767]
[1731367514041,1.61422305,89199.0,89173.0,0.00460559]
[1731367514267,0.16785752,89198.0,89173.0,0.00921118]
[1731367514479,0.16785752,89189.0,89165.0,0.0793]
[1731367514681,0.11422305,89188.0,89164.0,0.0008555]
[1731367515006,1.5,89174.0,89164.0,0.0008555]
[1731367515951,0.16785752,89173.0,89164.0,0.0008555]
[1731367516193,0.023,89172.0,89164.0,0.0008555]
[1731367516408,0.005,89192.0,89165.0,0.16785752]
[1731367516630,0.16785752,89180.0,89164.0,0.0008555]
[1731367516843,0.30508057,89179.0,89164.0,0.0008555]
[1731367517102,1.5,89165.0,89164.0,0.0008555]
[1731367517294,1.61422305,89165.0,89164.0,0.0008555]
[1731367517774,1.5,89165.0,89164.0,0.0008555]
[1731367517976,0.044808,89185.0,89164.0,0.0008555]
[1731367518183,0.16785752,89171.0,89164.0,0.0008555]
[1731367518391,0.11422305,89184.0,89164.0,0.0008555]
[1731367518609,0.16785752,89179.0,89167.0,0.005]
[1731367518822,0.16785752,89179.0,89147.0,0.17131992]
[1731367519032,0.16785752,89179.0,89148.0,0.11422305]
[1731367519246,0.044803,89194.0,89178.0,0.16785752]
[1731367519451,0.005,89210.0,89175.0,0.41440088]
[1731367519452,0.16785752,89187.0,89175.0,0.41440088]
[1731367519666,0.16785752,89187.0,89180.0,0.005]
[1731367519889,0.16785752,89196.0,89180.0,0.005]
[1731367520131,0.16785752,89196.0,89181.0,0.02601463]
[1731367520328,0.16785752,89187.0,89181.0,0.11422305]
[1731367520549,0.16785752,89196.0,89157.0,0.16785752]
[1731367520774,0.16785752,89196.0,89167.0,0.16785752]
[1731367520979,0.16785752,89187.0,89168.0,0.11422305]
[1731367521152,0.16785752,89196.0,89168.0,0.11422305]
[1731367521306,0.16785752,89187.0,89175.0,0.30517783]
[1731367521524,0.16785752,89186.0,89176.0,0.11422305]
[1731367521987,0.16785752,89196.0,89178.0,0.005]
[1731367522128,0.16785752,89196.0,89179.0,0.11422305]
[1731367522646,0.16785752,89208.0,89188.0,0.005]
[1731367522830,0.16785752,89196.0,89189.0,0.11422305]
[1731367523032,0.16785752,89208.0,89196.0,0.005]
[1731367523230,0.16785752,89208.0,89197.0,0.11422305]
[1731367523647,0.16785752,89208.0,89182.0,0.005]